Cogmind - Beta 16.1 @@@ ROGUE MODE // 2026.04.06 @ 19:09:18 Player: YA-B01 Result: Destroyed by 15-68D(R) with Subdweller Machine Gun Performance ------------- Evolutions (0) 0 Regions Visited (2) 400 Robots Destroyed (42) 210 Value Destroyed (727) 727 Prototype IDs (18) 360 Alien Tech Used (0) 0 Bonus (0) 0 TOTAL SCORE: 1697 Bonus ------- None Cogmind --------- Core Integrity 0/250 Matter 220/300 Energy 250/250 System Corruption 0% Temperature Cool (0) Movement Treading (240) Ox1 Location -10/Subcaves Parts ------- > --- POWER (1) -------- Ion Engine > --- PROPULSION (2) --- Light Treads Light Treads > --- UTILITY (2) ------ High-capacity Storage Unit Seismic Detector > --- WEAPON (2) ------- Subdweller Laser Grenade Launcher > --- INVENTORY (20) --- Light Treads Light Treads Wheel Compact Wheel High-capacity Matter Pod (200) High-capacity Matter Pod (200) High-capacity Matter Pod (200) Improved Terrain Scanner Seismic Detector Makeshift Light Armor Plating Particle Gun Subdweller Laser Battle Rifle Grenade Launcher 1B-0RG's Assimilator Mining Claw Peak State ------------ > --- POWER ------------ Ion Engine > --- PROPULSION ------- Light Treads Light Treads > --- UTILITY ---------- High-capacity Storage Unit Seismic Detector > --- WEAPON ----------- Subdweller Laser Mining Claw > --- INVENTORY -------- Light Treads Light Treads Wheel Compact Wheel High-capacity Matter Pod High-capacity Matter Pod High-capacity Matter Pod Improved Terrain Scanner Seismic Detector Makeshift Light Armor Plating Particle Gun Subdweller Laser Battle Rifle Grenade Launcher Grenade Launcher 1B-0RG's Assimilator [Rating: 16] Favorites ----------- Power Ion Engine Engine Ion Engine Propulsion Light Treads Treads Light Treads Utility High-capacity Storage Unit Device Seismic Detector Storage High-capacity Storage Unit Protection Light Armor Plating Weapon Assault Rifle Energy Gun Subdweller Laser Ballistic Gun Assault Rifle Launcher Grenade Launcher Slashing Weapon Mining Claw Build | -11 -10 -10 ------- Run | Yrd Mat Sub Slots Evolved . | . . . Power . | . . . Propulsion . | . . . Utility . | . . . Weapon . | . . . Parts Attached 21 | 7 8 6 Power 3 | 1 1 1 Engine 3 | 1 1 1 Core . | . . . Reactor . | . . . Propulsion 2 | 2 . . Treads 2 | 2 . . Leg . | . . . Wheel . | . . . Hover . | . . . Flight . | . . . Utility 7 | 2 3 2 Device 3 | 1 . 2 Storage 3 | 1 2 . Processor . | . . . Hackware . | . . . Protection 1 | . 1 . Artifact . | . . . Weapon 9 | 2 4 3 Energy Gun 1 | . . 1 Energy Cannon . | . . . Ballistic Gun 6 | 2 4 . Ballistic Cannon . | . . . Launcher 1 | . . 1 Special Weapon . | . . . Impact Weapon . | . . . Slashing Weapon 1 | . . 1 Piercing Weapon . | . . . Special Melee Weapon . | . . . Unidentified Prototypes . | . . . Parts Lost 3 | . 1 2 Power 2 | . 1 1 Propulsion . | . . . Utility 1 | . . 1 Weapon . | . . . Highest Loss Streak 2 | . 1 2 To Critical Strikes . | . . . Average Backups 16 | 4 15 19 Power . | . 1 . Propulsion 3 | 1 3 4 Utility 6 | 1 5 7 Weapon 5 | . 5 6 Tool/Special . | . . . Unused Backups 23 | . 4 19 Power . | . . . Propulsion 5 | . 1 4 Utility 9 | . 2 7 Weapon 8 | . 1 7 Tool/Special 1 | . . 1 Average Slot Usage (%) 99 | . 99 99 Engine 13 | . 13 14 Treads 28 | . 28 28 Device 6 | . 1 13 Storage 14 | . 14 14 Protection 7 | . 12 . Energy Gun 4 | . . 11 Ballistic Gun 20 | . 28 6 Slashing Weapon 3 | . . 8 Peak Build Rating 16 | 8 9 16 Average Rating 9 | 5 8 11 On Entrance 5 | . 8 9 Avg Prop Armor Cover (%) . | . . . Naked Turns . | . . . Heaviest Build 53 | 13 52 53 Greatest Support 40 | 40 40 40 Greatest Overweight (x) 1 | . 1 1 Average Overweight (x) . | . . 1 Largest Inventory Capacity 20 | 8 20 20 Average Capacity 17 | 7 16 20 Most Carried 20 | 8 20 20 Average Carried 16 | 4 15 19 Final Capacity 20 | 8 20 20 Final Carried 20 | 7 20 20 Class Distribution -------------------- 100% | Mutant Dominant Class ---------------- Mutant | -10/Materials Mutant | -10/Subcaves Resources | -11 -10 -10 ----------- Run | Yrd Mat Sub Matter Collected 1601 | 282 1145 174 Remotely . | . . . Salvage Created 1124 | 110 865 149 Parts 87 | 10 66 11 Haulers Intercepted 2 | . 2 . Recyclers Shooed 4 | . 4 . Parts Field Recycled . | . . . Retrieved Matter . | . . . Parts Self-Destructed 8 | . . 8 Prevented . | . . . Parts Restored . | . . . Kills | -11 -10 -10 ------- Run | Yrd Mat Sub Combat Hostiles Destroyed 20 | . 16 4 Guns 17 | . 16 1 AOE 3 | . . 3 Classes Destroyed 10 | 2 7 1 Worker 7 | . 7 . Builder 2 | . 2 . Tunneler 4 | 3 1 . Hauler 2 | . 2 . Recycler 2 | 1 1 . Operator 2 | . 2 . Watcher 3 | . 3 . Swarmer 6 | . 6 . Grunt 10 | . 10 . Subdweller 4 | . . 4 Best Kill Streak 4 | 4 4 2 Combat Bots Only 4 | . 4 2 Max Kills in Single Turn 2 | 1 2 1 Gunslinging 1 | . 1 . Exploded 1 | . . 1 Melee . | . . . Uniques/NPCs Destroyed . | . . . Combat | -11 -10 -10 -------- Run | Yrd Mat Sub Hostile Shots Fired 83 | . 72 11 Missed 23 | . 22 1 Hits 60 | . 50 10 Projectile 60 | . 50 10 Critical Strikes 2 | . 2 . Damage Taken 945 | . 544 401 Core 255 | . 63 192 Absorbed by Shields . | . . . Core Remaining (%) 100 | 100 . . Volleys Fired 119 | 11 92 16 Largest 2 | 2 2 2 Hottest 80 | 40 40 80 Shots Fired 227 | 22 184 21 Gun 216 | 22 184 10 Cannon . | . . . Launcher 11 | . . 11 Special . | . . . Kinetic 215 | 22 184 9 Thermal 1 | . . 1 Explosive 11 | . . 11 Electromagnetic . | . . . Robot Hit Streak 13 | 7 13 10 Robot Miss Streak 5 | 3 5 . Penetration Max . | . . . Secondary Targets 2 | . 2 . Max Gunslinging Chain 1 | . 1 . Shots Hit Robots 138 | 15 115 8 Core Hits 76 | 8 58 10 Critical Kills . | . . . Critical Parts Destroyed 1 | . 1 . Critical Strikes 1 | . 1 . Destroy 1 | . 1 . Melee Attacks 8 | . . 8 Impact . | . . . Slashing 8 | . . 8 Piercing . | . . . Sneak Attacks . | . . . Combat Hostiles . | . . . Follow-up Attacks . | . . . Damage Inflicted 1884 | 113 1348 423 Guns 1461 | 113 1253 95 Cannons . | . . . Explosions 328 | . . 328 Melee . | . . . Ramming 95 | . 95 . Kinetic 1461 | 113 1253 95 Thermal . | . . . Explosive 328 | . . 328 Electromagnetic . | . . . Impact . | . . . Slashing . | . . . Piercing . | . . . Highest Corruption . | . . . Average Corruption . | . . . Corruption Purged . | . . . Corruption Blocked . | . . . Overload Shots . | . . . Overflow Damage . | . . . Projectiles . | . . . Explosions . | . . . Melee . | . . . Knockbacks . | . . . Impact . | . . . Kinetic . | . . . Secondary . | . . . Self-Inflicted Damage 28 | . . 28 Shots 1 | . . 1 Rammed 17 | . 17 . Targets Rammed 21 | . 21 . Kicked . | . . . Crushed 4 | . 4 . Highest Temperature 19 | . 19 . Average Temperature 7 | . 7 . Received Heat Transfer 285 | . 234 51 Siege Activations . | . . . Martial Activations . | . . . Shielding Activations . | . . . Robots Disrupted . | . . . Combat Hostiles . | . . . Robots Corrupted . | . . . Combat Hostiles . | . . . Parts Fried . | . . . Impact Corruptions . | . . . Robots Melted . | . . . Combat Hostiles . | . . . Parts Melted . | . . . Heat Transferred . | . . . Parts Sabotaged . | . . . Parts Stolen . | . . . Parts Stripped . | . . . Power Chain Reactions . | . . . Alert | -11 -10 -10 ------- Run | Yrd Mat Sub Maximum Alert Level 1 | . 1 . Low Security (%) 94 | 100 93 . Level 1 5 | . 6 . Level 2 . | . . . Level 3 . | . . . Level 4 . | . . . Level 5 . | . . . High Security . | . . . Max Security . | . . . Peak Influence 224 | 10 224 . Initial . | . . . Average 62 | 1 66 . Influence Increases 551 | 20 531 . Destroy 0b10 Robot/C 320 | . 320 . Destroy 0b10 Robot/NC 110 | 20 90 . Destroy Leader 70 | . 70 . Successful Hack 36 | . 36 . Lose Combat Pursuer 15 | . 15 . Influence Decreases 551 | 20 531 . Time Decay 541 | 20 521 . Lost Part 10 | . 10 . Squads Dispatched 2 | . 2 . Investigation 1 | . 1 . Extermination . | . . . Reinforcement 1 | . 1 . Assault . | . . . Garrison . | . . . Intercept . | . . . Searches Triggered . | . . . Construction Impeded . | . . . Haulers Reinforced . | . . . Active Scanning Responses . | . . . Cargo Convoy Interrupts . | . . . Stealth | -11 -10 -10 --------- Run | Yrd Mat Sub Distress Signals 5 | . 5 . Communications Jammed . | . . . Distress Signals . | . . . Times Spotted 42 | . 35 7 Peak Tracking Total 6 | . 6 2 Tactical Retreats 1 | . 1 . Traps | -11 -10 -10 ------- Run | Yrd Mat Sub Traps Triggered 5 | . 1 4 Indirectly . | . . . Trap Hack Attempts . | . . . Triggered . | . . . Disarmed . | . . . Reprogrammed 3 | . 3 . Reused . | . . . Traps Extracted . | . . . Installed . | . . . Triggered . | . . . Machines | -11 -10 -10 ---------- Run | Yrd Mat Sub Machines Disabled 1 | . 1 . Max in Single Turn 1 | . 1 . Machines Repaired . | . . . Machines Dismantled . | . . . Machines Sabotaged . | . . . Overloaded Fab Kills . | . . . Hacking | -11 -10 -10 --------- Run | Yrd Mat Sub Machines Accessed 9 | . 8 1 Terminals 7 | . 7 . Fabricators . | . . . Repair Stations . | . . . Recycling Units 1 | . 1 . Scanalyzers . | . . . Garrison Access . | . . . Total Hacks 34 | . 33 1 Successful 19 | . 18 1 Failed 15 | . 15 . Catastrophic . | . . . Database Lockouts . | . . . Manual 23 | . 23 . Terminals 28 | . 28 . Fabricators . | . . . Repair Stations . | . . . Recycling Units 5 | . 5 . Scanalyzers . | . . . Garrison Access . | . . . Terminal Hacks 7 | . 6 1 Prototype ID Bank 3 | . 3 . Branch Access Points 1 | . 1 . Locate Traps 1 | . 1 . Reprogram Traps 1 | . 1 . Proto ID Catalog 1 | . . 1 Fabricator Hacks . | . . . Repair Station Hacks . | . . . Recycling Unit Hacks 1 | . 1 . Retrieve Components 1 | . 1 . Scanalyzer . | . . . Garrison Access Hacks . | . . . Unauthorized Hacks 11 | . 11 . Terminals 9 | . 9 . Botnet 4 | . 4 . Skim 5 | . 5 . Fabricators . | . . . Repair Stations . | . . . Recycling Units 2 | . 2 . Reject 1 | . 1 . Mask 1 | . 1 . Scanalyzers . | . . . Garrison Access . | . . . Data Cores Recovered 1 | . 1 . Used 1 | . 1 . Hacking Detections 8 | . 8 . Full Trace Events . | . . . Feedback Events . | . . . Feedback Blocked . | . . . Robot Schematics Acquired . | . . . Robots Built . | . . . Authchips . | . . . Time . | . . . Total Robot Build Rating . | . . . Part Schematics Acquired . | . . . Parts Built . | . . . Authchips . | . . . Time . | . . . Total Part Build Rating . | . . . Part Studies Acquired . | . . . Parts Repaired . | . . . Time . | . . . Parts Recycled . | . . . Recycled Matter . | . . . Retrieved Matter . | . . . Retrieved Components 2 | . 2 . Parts Scanalyzed . | . . . Part Schematics Acquired . | . . . Parts Damaged . | . . . Bothacking | -11 -10 -10 ------------ Run | Yrd Mat Sub Used RIF Installer . | . . . Robots Hacked . | . . . Non-combat . | . . . Combat . | . . . Robot Hacks Applied . | . . . Relay Couplers Released . | . . . Fabnet Peak Effective % . | . . . Robots Rewired . | . . . Allies Hacked . | . . . Hacks Repelled . | . . . Allies | -11 -10 -10 -------- Run | Yrd Mat Sub Total Allies . | . . . Largest Group . | . . . Highest-Rated Group . | . . . Highest-Rated Ally . | . . . Total Orders . | . . . Ally Attacks . | . . . Total Damage . | . . . Kills . | . . . Allies Corrupted . | . . . Allies Melted . | . . . Intel | -11 -10 -10 ------- Run | Yrd Mat Sub Active Infowar (turns) 1536 | 3 293 1240 Seismic 1536 | 3 293 1240 Robot Analysis Total . | . . . Derelict Logs Recovered 2 | . . 2 Drone Launches . | . . . Drone Recoveries . | . . . Exploration | -11 -10 -10 ------------- Run | Yrd Mat Sub Turns Passed 3737 | 147 2286 1304 Spaces Moved 1339 | 63 915 361 Core 2 | 2 . . Treads 1337 | 61 915 361 Legs . | . . . Wheels . | . . . Hover . | . . . Flight . | . . . Fastest Speed 50 | 50 160 240 Average Speed 209 | 156 200 240 Slowest Speed 240 | 160 240 240 Overloaded Moves . | . . . Propulsion Burnouts . | . . . Robots Hopped . | . . . Potential Cave-ins . | . . . Cave-ins Triggered . | . . . Exploration Rate (%) 42 | 3 97 26 Regions Visited 2 Branch Regions 1 Pre-discovered Areas . | . . . Known Exits Taken 1 | . 1 . Unknown Exits Taken 1 | 1 . . Scrap Searched 3 | . . 3 Spaces Dug 16 | . . 16 Terrain Destroyed 84 | . . 84 Melee . | . . . Projectile . | . . . AOE 84 | . . 84 Terrain Rammed . | . . . Walls Destroyed . | . . . Machines Disabled . | . . . Actions | -11 -10 -10 --------- Run | Yrd Mat Sub Total 2040 | 91 1190 759 Wait 474 | 2 119 353 Move 1337 | 62 914 361 Hop . | . . . Pick Up 35 | 9 22 4 Fast Attach 8 | 5 1 2 Attach 3 | 2 . 1 Detach 1 | . . 1 Swap 12 | . 7 5 Drop 22 | . 14 8 Fire 119 | 11 92 16 Melee 8 | . . 8 Ram . | . . . Kick . | . . . Crush 21 | . 21 . Escape Stasis . | . . . Rewire . | . . . Trap . | . . . Miscellaneous . | . . . Route ------- -11/Scrapyard -10/Materials (discovered 6 exits: *Mat x3 / *Min x2 / *Sub) -10/Subcaves History --------- Turn | Location | Event 46 | -11/Scrapyard | Discovered new exit (range 15) 148 | -11/Scrapyard | Entered Materials 318 | -10/Materials | Build established: Mutant 819 | -10/Materials | Discovered new exit (range 15) 1247 | -10/Materials | Discovered new exit (range 5) 1329 | -10/Materials | Identified exit to Mines 1518 | -10/Materials | Learned 2 Mines zone layouts 1555 | -10/Materials | Learned location of 1 exit from Recycling 1583 | -10/Materials | Learned 2 Storage zone layouts 1603 | -10/Materials | Identified exit to Materials 1612 | -10/Materials | Identified exit to Subcaves 1612 | -10/Materials | Learned location of 1 exit from Materials 1623 | -10/Materials | Learned Storage emergency access door positions 1642 | -10/Materials | Loaded intel: 10 trap records 2434 | -10/Materials | Entered Subcaves 2655 | -10/Subcaves | Core integrity fell below 50% 2785 | -10/Subcaves | A swath of the cavern ceiling suddenly collapsed 3402 | -10/Subcaves | Visited 4L-MR0's lab 3409 | -10/Subcaves | Learned Materials stockpile data 3413 | -10/Subcaves | Learned location of 1 exit from Materials 3426 | -10/Subcaves | Found Prototype Special Melee Weapon 3733 | -10/Subcaves | Ambushed by Subdweller buried in earth 3734 | -10/Subcaves | Core integrity fell below 20% 3735 | -10/Subcaves | Ambushed by Subdweller buried in earth 3735 | -10/Subcaves | Ambushed by Subdweller buried in earth 3737 | -10/Subcaves | Ambushed by Subdweller buried in earth 3738 | -10/Subcaves | Destroyed by 15-68D(R) with Subdweller Machine Gun Last Messages --------------- 03424_ Dropped Terrain Scan Processor. 03424_ Dropped Hcp. Matter Pod. 03425_ Dropped Disposable Heat Sink. 03425_ Dropped Assault Rifle. 03426_ Acquired Prototype Special Melee Weapon. 03431_ Subatomizers dissect the Terrain Scan Processor. 03622_ FY-OPD(R) destroyed. 03624_ 2L-ZE9(R) destroyed. 03635_ Acquired 33 matter. 03642_ Acquired 7 matter. 03649_ The unstable cave ceiling collapses. 03660_ Scrap Shield Fragment crushed. 03668_ The unstable cave ceiling collapses. 03734_ VJ-X8D(R): "GOODGOOD!" 03735_ VJ-X8D(R) destroyed. 03736_ 15-68D(R): "FREEEEDUMB!" 03736_ V0-YVG(R): "ARGHSUB!" 03737_ The unstable cave ceiling collapses. 03738_ QK-CGY(R): "ARGHSUB!" Map ----- +----------------------------------------------------+ | ???????????#%*#[ #### #????????????????? | | ???????????#"%# #" #??# % #?????????????????? | | ???????????##&*"## ### ###?????????????????? | | ????????????###### & #???????????????????? | | ????????????????# =& #??????????????????? | | ????????????????## #??????????????????? | | ?????????????????# #### ##??????????????????? | | ?????????????????# #???#####???????????????????? | | ?????????????????## #???????????????????????????? | | ??????????????????####???????????????????????????? | | ?????????????????????????????????????????????????? | | ?????????????????????????????????????????????????? | | ?????????????????????????????????????????????????? | | #????????????????????####????????????????????????? | | ##?????????????????### ###?????????????????????? | | ##??????????????###$# R #?????????????????????? | | #??????????????? &] #?????????????????????? | | ##???????????????# %!& ?????????????????????? | | ##???????????????## R &= #?????????????????????? | | #????????????????# ##?????????????????????? | | #????????????????#R #?????????????????????? | | ##????????????????# #?????????????????????? | | #?????????????????# #??????????????????????? | | #????????????????### ###????????????????????? | | ##???????????????# " #????????????????????? | | #????????######## #"" @ #????????????????????? | | ####?##### # # # ##????????????????????? | | # ### # * #%* " ##????????????????????? | | & & """#????????????????????? | | """#????????????????????? | | # ## # # # ###????????????????????? | | ######################### #??????????????????????? | | ????????????????????###?###??????????????????????? | | ?????????????????????????????????????????????????? | | ?????????????????????????????????????????????????? | | ?????????????????????????????????????????????????? | | ?????????????????????????????????????????????????? | | ?????????????????????????????????????????????????? | | ?????????????????????????????????????????????????? | | ?????????????????????????????????????????????????? | | ?????????????????????????????????????????????????? | | ?????????????????????????????????????????????????? | | ?????????????????????????????????????????????????? | | ?????????????????????????????????????????????????? | | ?????????????????????????????????????????????????? | | ?????????????????????????????????????????????????? | | | | | | | | | +----------------------------------------------------+ Best States ------------- Heat Dissipation 25 Coolant Potential 50 Energy Generation 10 Energy Capacity 250 Matter Stores 300 Matter Capacity 300 Sight Range 16 Terrain Scan Density 10 Armor Coverage 150 Evasion (%) 40 Recoil Reduction 2 Item Schematics ----------------- None Robot Schematics ------------------ None Fabricated ------------ Nothing Repaired ---------- Nothing Studied --------- None Alien Tech Used ----------------- None Achievements -------------- None Challenges ------------ None Game ------ Seed HardcellCryofiberNetwork Manual? 0 Play Time 00:17:55 Cumulative 307.8 hours Start 2026.04.06 @ 18:53:37 End 2026.04.06 @ 19:09:18 Sessions 1 Manual Loads 0 Difficulty Rogue Special Mode None Game No. 160 Rogue 157 Adventurer 3 Explorer 0 Win Type - Total 8 Types 7/0/1/0/0/0/0/0/0/0 Lore% 77 Gallery% 70 Achievement% 48 Wizard Run 0 Options --------- Layout 1 ASCII 0 Keyboard 1 Movement Vi Keybinds 0 Fullscreen 1 Font 28/SmallcapsGlow Map View 50x43 Zoom Use 0% Tactical HUD 1 Map Filters NONE Filters NONE Steam X RUN: 4b861d26-11e3-4ff6-9339-9d90999724e2